Cogmind - Beta 11.1 @@@ ROGUE MODE // 2022.10.05 @ 21:28:27 Player: Fenrir Result: Destroyed by 8R-AWN with 8R-AWN's Boregun Performance ------------- Evolutions (0) 0 Regions Visited (3) 600 Robots Destroyed (3) 15 Value Destroyed (95) 95 Prototype IDs (0) 0 Alien Tech Used (0) 0 Bonus (0) 0 TOTAL SCORE: 710 Bonus ------- None Cogmind --------- Core Integrity 0/250 Matter 157/300 Energy 100/100 System Corruption 6% Temperature Cool (6) Movement Core (250) Ox4 Location -10/Exiles Parts ------- > --- POWER (1) -------- (None) > --- PROPULSION (2) --- (None) > --- UTILITY (2) ------ Medium Storage Unit > --- WEAPON (2) ------- Light Assault Rifle Light Cannon > --- INVENTORY (10) --- Fission Core Fission Core Structural Scanner Sensor Array Seismic Detector Targeting Computer Power Shielding EM Pulse Gun Grenade Launcher Peak State ------------ > --- POWER ------------ Ion Engine > --- PROPULSION ------- Light Treads Light Treads > --- UTILITY ---------- Medium Storage Unit Transport Network Coupler > --- WEAPON ----------- EM Pulse Gun Slug Cannon > --- INVENTORY -------- Fission Core Structural Scanner Sensor Array Seismic Detector Targeting Computer Power Shielding Light Assault Rifle Light Cannon Grenade Launcher [Rating: 11] Favorites ----------- Power Ion Engine Engine Ion Engine Propulsion Light Treads Treads Light Treads Utility Transport Network Coupler Storage Medium Storage Unit Processor Transport Network Coupler Weapon EM Pulse Gun Energy Gun EM Pulse Gun Ballistic Gun Light Assault Rifle Ballistic Cannon Slug Cannon Build | -11 -10 -10 -10 ------- Run | Scr Mat Min Exi Slots Evolved . | . . . . Power . | . . . . Propulsion . | . . . . Utility . | . . . . Weapon . | . . . . Parts Attached 13 | 8 1 2 2 Power 2 | 2 . . . Engine 2 | 2 . . . Core . | . . . . Reactor . | . . . . Propulsion 2 | 2 . . . Treads 2 | 2 . . . Leg . | . . . . Wheel . | . . . . Hover . | . . . . Flight . | . . . . Utility 3 | 1 1 1 . Device . | . . . . Storage 2 | 1 . 1 . Processor 1 | . 1 . . Hackware . | . . . . Protection . | . . . . Artifact . | . . . . Weapon 6 | 3 . 1 2 Energy Gun 2 | 2 . . . Energy Cannon . | . . . . Ballistic Gun 2 | 1 . . 1 Ballistic Cannon 2 | . . 1 1 Launcher . | . . . . Special Weapon . | . . . . Impact Weapon . | . . . . Slashing Weapon . | . . . . Piercing Weapon . | . . . . Special Melee Weapon . | . . . . Unidentified Prototypes . | . . . . Parts Lost 5 | . . . 5 Power 1 | . . . 1 Propulsion 2 | . . . 2 Utility 1 | . . . 1 Weapon 1 | . . . 1 Highest Loss Streak 5 | . . . 5 To Critical Strikes 1 | . . . 1 Average Slot Usage (%) 97 | . 96 100 95 Engine 13 | . 14 14 13 Treads 27 | . 28 28 26 Storage 14 | . 14 14 14 Processor 12 | . 10 14 12 Energy Gun 17 | . 28 23 12 Ballistic Cannon 10 | . . 4 14 Naked Turns . | . . . . Heaviest Build 24 | 14 14 24 24 Greatest Support 40 | 40 40 40 40 Greatest Overweight (x) 4 | 4 . . . Average Overweight (x) . | 1 . . . Largest Inventory Capacity 10 | 8 8 10 10 Average Capacity 9 | 7 8 8 10 Most Carried 10 | 3 5 8 10 Average Carried 7 | . 3 6 9 Final Capacity 10 | 8 8 10 10 Final Carried 9 | 1 5 8 9 Class Distribution -------------------- 100% | Mutant Dominant Class ---------------- Mutant | -10/Materials Mutant | -10/Mines Mutant | -10/Exiles Resources | -11 -10 -10 -10 ----------- Run | Scr Mat Min Exi Matter Collected 406 | 269 . 101 36 Remotely . | . . . . Salvage Created 107 | . . 74 33 Parts 8 | . . 8 . Haulers Intercepted . | . . . . Recyclers Shooed . | . . . . Parts Field Recycled . | . . . . Retrieved Matter . | . . . . Parts Self-Destructed . | . . . . Prevented . | . . . . Kills | -11 -10 -10 -10 ------- Run | Scr Mat Min Exi Combat Hostiles Destroyed 9 | . . 2 7 Cannons 8 | . . 1 7 Classes Destroyed 3 | . . 2 1 Builder 1 | . . 1 . Sentry 2 | . . 2 . Assembled 7 | . . . 7 Best Kill Streak 7 | . . 3 7 Combat Bots Only 7 | . . 2 7 Max Kills in Single Turn 2 | . . 1 2 Gunslinging . | . . . . Exploded . | . . . . Melee . | . . . . Uniques/NPCs Destroyed . | . . . . Combat | -11 -10 -10 -10 -------- Run | Scr Mat Min Exi Damage Taken 1078 | . . 285 793 Core 255 | . . . 255 Absorbed by Shields . | . . . . Core Remaining (%) 100 | 100 . . . Volleys Fired 38 | . . 10 28 Largest 2 | . . 2 2 Hottest 88 | . . 88 88 Shots Fired 66 | . . 20 46 Gun 18 | . . 10 8 Cannon 48 | . . 10 38 Launcher . | . . . . Special . | . . . . Kinetic 52 | . . 10 42 Thermal . | . . . . Explosive . | . . . . Electromagnetic 14 | . . 10 4 Robot Hit Streak 10 | . . 5 10 Robot Miss Streak 3 | . . 1 3 Penetration Max . | . . . . Secondary Targets . | . . . . Shots Hit Robots 42 | . . 14 28 Core Hits 13 | . . 4 9 Critical Kills . | . . . . Critical Parts Destroyed 1 | . . 1 . Critical Strikes 4 | . . 3 1 Destroy 1 | . . 1 . Blast 1 | . . . 1 Corrupt 2 | . . 2 . Melee Attacks . | . . . . Impact . | . . . . Slashing . | . . . . Piercing . | . . . . Sneak Attacks . | . . . . Combat Hostiles . | . . . . Follow-up Attacks . | . . . . Damage Inflicted 1051 | . . 356 695 Guns 142 | . . 108 34 Cannons 909 | . . 248 661 Explosions . | . . . . Melee . | . . . . Ramming . | . . . . Kinetic 931 | . . 248 683 Thermal . | . . . . Explosive . | . . . . Electromagnetic 120 | . . 108 12 Impact . | . . . . Slashing . | . . . . Piercing . | . . . . Highest Corruption 6 | . . . 6 Average Corruption 5 | . . . 5 Corruption Purged . | . . . . Corruption Blocked . | . . . . Effects 3 | . . . 3 Data Loss (minor) 1 | . . . 1 Misfires 1 | . . . 1 Weapon Failures 1 | . . . 1 Overload Shots . | . . . . Overflow Damage 64 | . . . 64 Projectiles 64 | . . . 64 Explosions . | . . . . Melee . | . . . . Knockbacks 11 | . . 1 10 Impact . | . . . . Kinetic 9 | . . 1 8 Secondary 2 | . . . 2 Self-Inflicted Damage . | . . . . Shots . | . . . . Rammed . | . . . . Targets Rammed . | . . . . Kicked . | . . . . Crushed . | . . . . Highest Temperature 342 | . . 342 141 Average Temperature 108 | . . 168 63 Received Heat Transfer 181 | . . 81 100 Effects 2 | . . 2 . Shutdowns 1 | . . 1 . Energy Bleed 1 | . . 1 . Siege Activations . | . . . . Robots Corrupted 1 | . . 1 . Combat Hostiles 1 | . . 1 . Parts Fried . | . . . . Impact Corruptions . | . . . . Robots Melted . | . . . . Combat Hostiles . | . . . . Parts Melted . | . . . . Heat Transferred . | . . . . Parts Sabotaged . | . . . . Parts Stolen . | . . . . Parts Stripped . | . . . . Power Chain Reactions . | . . . . Missiles Intercepted . | . . . . Alert | -11 -10 -10 -10 ------- Run | Scr Mat Min Exi Peak Influence 69 | . 9 69 . Initial 3 | . . 3 . Average 15 | . 8 21 . Maximum Alert Level . | . . . . Low Security (%) 100 | 100 100 100 . Level 1 . | . . . . Level 2 . | . . . . Level 3 . | . . . . Level 4 . | . . . . Level 5 . | . . . . High Security . | . . . . Max Security . | . . . . Squads Dispatched 1 | . 1 . . Investigation . | . . . . Extermination . | . . . . Reinforcement 1 | . 1 . . Assault . | . . . . Garrison . | . . . . Intercept . | . . . . Searches Triggered . | . . . . Construction Impeded . | . . . . Haulers Reinforced . | . . . . Active Scanning Responses . | . . . . Cargo Convoy Interrupts . | . . . . Stealth | -11 -10 -10 -10 --------- Run | Scr Mat Min Exi Distress Signals . | . . . . Communications Jammed . | . . . . Distress Signals . | . . . . Times Spotted 11 | . 1 2 8 Peak Tracking Total 9 | . 1 2 9 Tactical Retreats . | . . . . Traps | -11 -10 -10 -10 ------- Run | Scr Mat Min Exi Traps Triggered . | . . . . Indirectly . | . . . . Trap Hack Attempts . | . . . . Triggered . | . . . . Disarmed . | . . . . Reprogrammed . | . . . . Reused . | . . . . Traps Extracted . | . . . . Installed . | . . . . Triggered . | . . . . Machines | -11 -10 -10 -10 ---------- Run | Scr Mat Min Exi Machines Disabled 3 | . . . 3 Max in Single Turn 1 | . . . 1 Machines Sabotaged . | . . . . Garrisons Compromised . | . . . . Overloaded Fab Kills . | . . . . Hacking | -11 -10 -10 -10 --------- Run | Scr Mat Min Exi Machines Accessed 4 | . 1 . 3 Terminals 1 | . 1 . . Fabricators . | . . . . Repair Stations . | . . . . Recycling Units . | . . . . Scanalyzers . | . . . . Garrison Access . | . . . . Total Hacks 13 | . 2 . 11 Successful 13 | . 2 . 11 Failed . | . . . . Catastrophic . | . . . . Database Lockouts . | . . . . Manual . | . . . . Terminals 2 | . 2 . . Fabricators . | . . . . Repair Stations . | . . . . Recycling Units . | . . . . Scanalyzers . | . . . . Garrison Access . | . . . . Terminal Hacks 13 | . 2 . 11 Record 11 | . . . 11 Emergency Access Points 1 | . 1 . . Transport Status 1 | . 1 . . Fabricator Hacks . | . . . . Repair Station Hacks . | . . . . Recycling Unit Hacks . | . . . . Scanalyzer . | . . . . Garrison Access Hacks . | . . . . Unauthorized Hacks . | . . . . Terminals . | . . . . Fabricators . | . . . . Repair Stations . | . . . . Recycling Units . | . . . . Scanalyzers . | . . . . Garrison Access . | . . . . Data Cores Recovered . | . . . . Used . | . . . . Hacking Detections 1 | . 1 . . Full Trace Events . | . . . . Feedback Events . | . . . . Feedback Blocked . | . . . . Robot Schematics Acquired . | . . . . Robots Built . | . . . . Authchips . | . . . . Time . | . . . . Total Robot Build Rating . | . . . . Part Schematics Acquired . | . . . . Parts Built . | . . . . Authchips . | . . . . Time . | . . . . Total Part Build Rating . | . . . . Parts Repaired . | . . . . Time . | . . . . Parts Recycled . | . . . . Recycled Matter . | . . . . Retrieved Matter . | . . . . Retrieved Components . | . . . . Parts Scanalyzed . | . . . . Part Schematics Acquired . | . . . . Parts Damaged . | . . . . Bothacking | -11 -10 -10 -10 ------------ Run | Scr Mat Min Exi Used RIF Installer . | . . . . Robots Hacked . | . . . . Non-combat . | . . . . Combat . | . . . . Robot Hacks Applied . | . . . . Relay Couplers Released . | . . . . Fabnet Peak Effective % . | . . . . Robots Rewired . | . . . . Allies Hacked . | . . . . Hacks Repelled . | . . . . Allies | -11 -10 -10 -10 -------- Run | Scr Mat Min Exi Total Allies . | . . . . Largest Group . | . . . . Highest-Rated Group . | . . . . Highest-Rated Ally . | . . . . Total Orders . | . . . . Ally Attacks . | . . . . Total Damage . | . . . . Kills . | . . . . Allies Corrupted . | . . . . Allies Melted . | . . . . Intel | -11 -10 -10 -10 ------- Run | Scr Mat Min Exi Robot Analysis Total . | . . . . Derelict Logs Recovered . | . . . . Drone Launches . | . . . . Drone Recoveries . | . . . . Exploration | -11 -10 -10 -10 ------------- Run | Scr Mat Min Exi Turns Passed 1497 | 70 172 407 848 Spaces Moved 847 | 35 103 229 480 Core 20 | 20 . . . Treads 827 | 15 103 229 480 Legs . | . . . . Wheels . | . . . . Hover . | . . . . Flight . | . . . . Fastest Speed 50 | 50 160 160 160 Average Speed 159 | 154 160 160 160 Slowest Speed 250 | 250 160 160 160 Overloaded Moves . | . . . . Propulsion Burnouts . | . . . . Robots Hopped . | . . . . Cave-ins Triggered . | . . . . Exploration Rate (%) 43 | 3 27 54 90 Regions Visited 3 Branch Regions 2 Pre-discovered Areas 1 | . . . 1 Known Exits Taken . | . . . . Unknown Exits Taken 3 | 1 1 1 . Scrap Searched 1 | . . 1 . Spaces Dug . | . . . . Terrain Destroyed 4 | . . 2 2 Melee . | . . . . Projectile 4 | . . 2 2 AOE . | . . . . Terrain Rammed . | . . . . Walls Destroyed . | . . . . Machines Disabled . | . . . . Actions | -11 -10 -10 -10 --------- Run | Scr Mat Min Exi Total 927 | 51 110 250 516 Wait 9 | . 2 3 4 Move 844 | 34 102 228 480 Hop . | . . . . Pick Up 20 | 8 5 5 2 Fast Attach . | . . . . Attach 8 | 6 1 . 1 Detach . | . . . . Swap 5 | 2 . 2 1 Drop 3 | 1 . 2 . Fire 38 | . . 10 28 Melee . | . . . . Ram . | . . . . Kick . | . . . . Crush . | . . . . Escape Stasis . | . . . . Rewire . | . . . . Trap . | . . . . Miscellaneous . | . . . . Route ------- -11/Scrapyard -10/Materials -10/Mines -10/Exiles (discovered 1 exit: [*Min]) History --------- Turn | Location | Event 40 | -11/Scrapyard | Discovered new exit (range 14) 71 | -11/Scrapyard | Entered Materials 202 | -10/Materials | Met 8R-AWN 208 | -10/Materials | Discovered new exit (range 16) 243 | -10/Materials | Entered Mines 244 | -10/Mines | Followed 8R-AWN into the Mines 304 | -10/Mines | Build established: Mutant 381 | -10/Mines | A weapon hastily lodged in a ceiling crevice suddenly fell to the ground 417 | -10/Mines | Discovered new exit (range 5) 650 | -10/Mines | Entered Exiles 700 | -10/Exiles | Welcomed by 8R-AWN 731 | -10/Exiles | Met EX-HEX 852 | -10/Exiles | Met EX-DEC 885 | -10/Exiles | Visited The Gauntlet 1121 | -10/Exiles | Learned location of Zion (-6) 1211 | -10/Exiles | Discovered new exit (range 14) 1324 | -10/Exiles | Met EX-BIN 1396 | -10/Exiles | Attacked by the Exiles 1475 | -10/Exiles | Destroyed 7 combat bots 1488 | -10/Exiles | Core integrity fell below 50% 1495 | -10/Exiles | Core integrity fell below 20% 1498 | -10/Exiles | Lost 5 parts (1p2n1u1w) 1498 | -10/Exiles | Destroyed by 8R-AWN with 8R-AWN's Boregun Last Messages --------------- 01468_ 8R-AWN knocked back. 01469_ Penetrated by HV Slug. 01470_ 8R-AWN knocked back. 01471_ Penetrated by HV Slug. 01473_ HV Slug penetrates Wall. 01474_ 8R-AWN knocked back. 01476_ HV Slug penetrates Wall. 01476_ Penetrated by HV Slug. 01478_ HV Slug penetrates Wall. 01478_ System corrupted: Lgt. Cannon jammed. 01480_ 8R-AWN knocked back. 01482_ Wall collapses. 01485_ HV Slug penetrates Wall. 01485_ Penetrated by HV Slug. 01488_ System corrupted: FCS attempts to trigger Lgt. Cannon. 01488_ System corrupted: Lgt. Cannon misfires. 01489_ Penetrated by HV Slug. 01497_ 8R-AWN knocked back. 01498_ Penetrated by HV Slug. [Achievement: First Step to Greatness] Map ----- +----------------------------------------------------+ | | | | | | | | | | | | | | | | | | | | | | | | | | | ?????????????????????????????????????????????????? | | ?????????????????????????????????????????????????? | | ?????????????????????????????????????????????????? | | ?????????????????????????????????????????????????? | | ?????????????????????????????????????????????????? | | ???????????????????########??????????????????????? | | ???????????????????# #??????????????????????? | | ???????????????????## #??????????????????????? | | ????????????????????# #??????????????????????? | | ???????????????????## #########??????????????? | | ???????????????????#; ##""" ""#??????????????? | | ????????????????????# ##%% """#??????????????? | | ????????????????????# @ X""#??????????????? | | ????????????????????# ;#%%%"""#??????????????? | | ????????????######### ## " """#??????????????? | | ????????????#""""""## *;###"####??????????????? | | ????????????#"""" ## #??# #?????????????????? | | ????????????#""X" % #??###?????????????????? | | ????????????#" %g#??????????????????????? | | ????????????#" ## % #??????????????????????? | | ????????????#""""""## #??????????????????????? | | ????????????##"###### #??????????????????????? | | ???????????? "?????# #???"""""??????????????? | | ???????????"""??????# #??""""""??????????????? | | ???????????"""?????## ###"" """"?????????????? | | ???????????????????#" """"?????????????? | | ???????????????????#" """?????????????? | | ???????????????????#" """?????????????? | | ???????????????????#" """?????????????? | | ????########???????#" """?????????????? | | ????# """#???????#" """?????????????? | | ????#"" """#???????## """?????????????? | | ????#"" #????????# """?????????????? | | ????#"" #????????#" "X" """?????????????? | | ????#"" "#????????#" """ #????????????? | | ????# ""#????????#" """""""""#????????????? | | ????#"" ""#???????##" #######???#????????????? | +----------------------------------------------------+ Best States ------------- Heat Dissipation 25 Energy Generation 10 Energy Capacity 250 Matter Stores 300 Matter Capacity 300 Sight Range 16 Terrain Scan Density 10 Evasion (%) 40 Recoil Reduction 2 Item Schematics ----------------- None Robot Schematics ------------------ None Fabricated ------------ Nothing Alien Tech Used ----------------- None Achievements -------------- First Step to Greatness Librarian Power Corrupts Challenges ------------ None Game ------ Seed ModifiedMassScreen Manual? 0 Play Time 00:22:39 Cumulative 1.5 hours Start 2022.10.05 @ 20:47:16 End 2022.10.05 @ 21:28:27 Sessions 1 Manual Loads 0 Difficulty Rogue Special Mode None Game No. 4 Rogue 4 Adventurer 0 Explorer 0 Win Type - Total 0 Types 0/0/0/0/0/0/0/0/0 Lore% 4 Gallery% 4 Achievement% 6 Wizard Run 0 Options --------- ASCII 0 Keyboard 0 Movement Mouse Keybinds 0 Fullscreen 1 Font 18/X11Bold Map View 76x50 Tactical HUD 1 Map Filters NONE Filters NONE Steam 1 RUN: efbbc666-065f-4fcf-a55d-017fc4c0c514